[Event "Early-Titled-Tuesday-Blitz-July-09-2024"]
[Site "Chess.com"]
[Date "2024.07.09"]
[Round "6"]
[White "ChessSwole"]
[Black "Orest_Vovk"]
[Result "1-0"]
[WhiteElo "2708"]
[BlackElo "2535"]
[TimeControl "180+1"]
[EndTime "9:09:11 PDT"]
[Termination "ChessSwole won on time"]

1. d4 {[%clk 0:03:00.9]} 1... h6 {[%clk 0:02:57.2]} 2. h4 {[%clk 0:02:59.2]}
2... e5 {[%clk 0:02:47.7]} 3. dxe5 {[%clk 0:02:58.5]} 3... Nc6 {[%clk
0:02:47.3]} 4. Nf3 {[%clk 0:02:57.4]} 4... Qe7 {[%clk 0:02:47.5]} 5. Bf4 {[%clk
0:02:45.1]} 5... Qb4+ {[%clk 0:02:14.4]} 6. Bd2 {[%clk 0:02:45.3]} 6... Qxb2
{[%clk 0:02:14.4]} 7. Nc3 {[%clk 0:02:45.6]} 7... Bb4 {[%clk 0:02:14.4]} 8. Rb1
{[%clk 0:02:43.3]} 8... Qxc3 {[%clk 0:02:14.6]} 9. Bxc3 {[%clk 0:02:43.7]} 9...
Bxc3+ {[%clk 0:02:15.5]} 10. Nd2 {[%clk 0:02:44.4]} 10... Nxe5 {[%clk
0:02:15.8]} 11. Rb3 {[%clk 0:02:40.7]} 11... Ba5 {[%clk 0:02:15.2]} 12. Qa1
{[%clk 0:02:11.4]} 12... f6 {[%clk 0:01:41.6]} 13. Rb5 {[%clk 0:01:53.4]} 13...
Nc4 {[%clk 0:01:18.5]} 14. c3 {[%clk 0:01:33]} 14... a6 {[%clk 0:01:17.1]} 15.
Rc5 {[%clk 0:01:21.7]} 15... Nxd2 {[%clk 0:01:16.6]} 16. Rxa5 {[%clk 0:01:21.4]}
16... Nc4 {[%clk 0:00:58.6]} 17. Rc5 {[%clk 0:01:21.3]} 17... b5 {[%clk
0:00:58.5]} 18. Rxc7 {[%clk 0:01:19.2]} 18... Kd8 {[%clk 0:00:55.2]} 19. Rxc4
{[%clk 0:01:12.2]} 19... bxc4 {[%clk 0:00:54.9]} 20. e3 {[%clk 0:01:09]} 20...
d5 {[%clk 0:00:47.2]} 21. Qd1 {[%clk 0:01:07]} 21... Ne7 {[%clk 0:00:46.3]} 22.
Bxc4 {[%clk 0:01:06.3]} 22... Be6 {[%clk 0:00:39.4]} 23. e4 {[%clk 0:01:01]}
23... Ke8 {[%clk 0:00:36.9]} 24. Bxd5 {[%clk 0:00:57.9]} 24... Rd8 {[%clk
0:00:24.9]} 25. Qa4+ {[%clk 0:00:56.4]} 25... Kf7 {[%clk 0:00:22.4]} 26. c4
{[%clk 0:00:48.5]} 26... Bxd5 {[%clk 0:00:19]} 27. cxd5 {[%clk 0:00:48.6]} 27...
Rhe8 {[%clk 0:00:15]} 28. O-O {[%clk 0:00:46.4]} 28... Ng6 {[%clk 0:00:13.1]}
29. g3 {[%clk 0:00:37]} 29... Re7 {[%clk 0:00:08.1]} 30. f4 {[%clk 0:00:30.8]}
30... Rde8 {[%clk 0:00:07]} 31. Re1 {[%clk 0:00:31.3]} 31... Rd8 {[%clk
0:00:05.8]} 32. Qxa6 {[%clk 0:00:27.8]} 32... Nf8 {[%clk 0:00:05.1]} 33. Qc4
{[%clk 0:00:24.8]} 33... Red7 {[%clk 0:00:03.6]} 34. d6+ {[%clk 0:00:22.4]}
34... Kg6 {[%clk 0:00:04]} 35. e5 {[%clk 0:00:22.7]} 35... fxe5 {[%clk
0:00:04.1]} 36. fxe5 {[%clk 0:00:23.6]} 36... Rf7 {[%clk 0:00:02.5]} 37. Qd3+
{[%clk 0:00:19.7]} 37... Kh5 {[%clk 0:00:02.4]} 38. Rf1 {[%clk 0:00:19]} 38...
Rxf1+ {[%clk 0:00:01.8]} 39. Qxf1 {[%clk 0:00:19.9]} 39... Ne6 {[%clk
0:00:02.1]} 40. Qf5+ {[%clk 0:00:19.3]} 40... g5 {[%clk 0:00:01.7]} 41. hxg5
{[%clk 0:00:20.2]} 41... Nxg5 {[%clk 0:00:01.4]} 42. Kg2 {[%clk 0:00:19]} 42...
Rb8 {[%clk 0:00:01.5]} 43. Qc2 {[%clk 0:00:16.5]} 1-0

[Event "Early-Titled-Tuesday-Blitz-July-09-2024"]
[Site "Chess.com"]
[Date "2024.07.09"]
[Round "6"]
[White "Fh2411"]
[Black "Matols"]
[Result "1-0"]
[WhiteElo "2588"]
[BlackElo "2359"]
[TimeControl "180+1"]
[EndTime "9:09:11 PDT"]
[Termination "Fh2411 won by resignation"]

1. d4 {[%clk 0:02:54.2]} 1... d5 {[%clk 0:02:59.4]} 2. c4 {[%clk 0:02:53.6]}
2... e6 {[%clk 0:02:59.9]} 3. Nc3 {[%clk 0:02:53.2]} 3... Nf6 {[%clk 0:03:00.3]}
4. Bg5 {[%clk 0:02:53]} 4... dxc4 {[%clk 0:02:57.4]} 5. e3 {[%clk 0:02:51]} 5...
c5 {[%clk 0:02:56.5]} 6. dxc5 {[%clk 0:02:39]} 6... Qxd1+ {[%clk 0:02:50]} 7.
Rxd1 {[%clk 0:02:39.9]} 7... Bxc5 {[%clk 0:02:49.8]} 8. Bxf6 {[%clk 0:02:39.9]}
8... gxf6 {[%clk 0:02:48.1]} 9. Bxc4 {[%clk 0:02:40.6]} 9... Bd7 {[%clk
0:02:36.5]} 10. Nge2 {[%clk 0:02:36.4]} 10... Bc6 {[%clk 0:02:34.5]} 11. Bb5
{[%clk 0:02:34.3]} 11... a6 {[%clk 0:02:28.9]} 12. Bxc6+ {[%clk 0:02:33.2]}
12... Nxc6 {[%clk 0:02:29.8]} 13. O-O {[%clk 0:02:31.7]} 13... Ke7 {[%clk
0:02:24.4]} 14. a3 {[%clk 0:02:24.4]} 14... Rad8 {[%clk 0:02:23.4]} 15. Nf4
{[%clk 0:02:00.8]} 15... Ne5 {[%clk 0:02:19.2]} 16. Ne4 {[%clk 0:01:53.7]} 16...
Ba7 {[%clk 0:02:15.9]} 17. b3 {[%clk 0:01:53.9]} 17... f5 {[%clk 0:02:06.3]} 18.
Ng3 {[%clk 0:01:36.2]} 18... Ng4 {[%clk 0:01:54.8]} 19. Rxd8 {[%clk 0:01:03.9]}
19... Rxd8 {[%clk 0:01:55.7]} 20. h3 {[%clk 0:01:03.9]} 20... Ne5 {[%clk
0:01:44.1]} 21. Rc1 {[%clk 0:01:02.2]} 21... Bb6 {[%clk 0:01:40.1]} 22. Nf1
{[%clk 0:00:55.1]} 22... Nd3 {[%clk 0:01:27.6]} 23. Nxd3 {[%clk 0:00:53]} 23...
Rxd3 {[%clk 0:01:28.5]} 24. Rb1 {[%clk 0:00:50.6]} 24... e5 {[%clk 0:01:11.5]}
25. g4 {[%clk 0:00:40]} 25... f4 {[%clk 0:00:58.6]} 26. exf4 {[%clk 0:00:37.3]}
26... exf4 {[%clk 0:00:59.5]} 27. Kg2 {[%clk 0:00:37.8]} 27... Kf6 {[%clk
0:00:54.1]} 28. a4 {[%clk 0:00:36.2]} 28... Kg5 {[%clk 0:00:42.8]} 29. Nh2
{[%clk 0:00:33.2]} 29... Kf6 {[%clk 0:00:36.9]} 30. Nf3 {[%clk 0:00:33.8]} 30...
Rc3 {[%clk 0:00:33.9]} 31. Rb2 {[%clk 0:00:33.9]} 31... Rc1 {[%clk 0:00:27.5]}
32. Nd2 {[%clk 0:00:30.1]} 32... Bd4 {[%clk 0:00:23.2]} 33. Ne4+ {[%clk
0:00:27.8]} 33... Ke5 {[%clk 0:00:20.5]} 34. Re2 {[%clk 0:00:28.4]} 34... Kd5
{[%clk 0:00:19.9]} 35. Kf3 {[%clk 0:00:23.7]} 35... Rb1 {[%clk 0:00:19.2]} 36.
Nd2 {[%clk 0:00:15.4]} 36... Rb2 {[%clk 0:00:17.5]} 37. Kxf4 {[%clk 0:00:15.5]}
37... Bc3 {[%clk 0:00:16.6]} 38. Ke3 {[%clk 0:00:15.9]} 38... a5 {[%clk
0:00:13.9]} 39. Kd3 {[%clk 0:00:13.8]} 39... Bb4 {[%clk 0:00:13.5]} 40. f4
{[%clk 0:00:09.8]} 40... b6 {[%clk 0:00:13]} 41. Re5+ {[%clk 0:00:07.5]} 41...
Kd6 {[%clk 0:00:12.6]} 42. Nc4+ {[%clk 0:00:07.4]} 1-0

[Event "Early-Titled-Tuesday-Blitz-July-09-2024"]
[Site "Chess.com"]
[Date "2024.07.09"]
[Round "6"]
[White "arctic_t00"]
[Black "Zhigalko_Sergei"]
[Result "0-1"]
[WhiteElo "2662"]
[BlackElo "2935"]
[TimeControl "180+1"]
[EndTime "9:09:15 PDT"]
[Termination "Zhigalko_Sergei won by resignation"]

1. Nf3 {[%clk 0:03:00.9]} 1... d5 {[%clk 0:03:00.1]} 2. g3 {[%clk 0:03:01.3]}
2... c6 {[%clk 0:03:00.4]} 3. Bg2 {[%clk 0:03:01.9]} 3... Bg4 {[%clk 0:03:00.7]}
4. h3 {[%clk 0:03:01.2]} 4... Bh5 {[%clk 0:03:00.8]} 5. c4 {[%clk 0:02:59.3]}
5... e6 {[%clk 0:03:00.3]} 6. O-O {[%clk 0:02:53.3]} 6... Nf6 {[%clk 0:02:59.1]}
7. d3 {[%clk 0:02:52.5]} 7... Be7 {[%clk 0:02:58.2]} 8. Qb3 {[%clk 0:02:50.4]}
8... Qb6 {[%clk 0:02:57.8]} 9. Be3 {[%clk 0:02:50.3]} 9... Qa6 {[%clk
0:02:57.6]} 10. Nc3 {[%clk 0:02:40]} 10... O-O {[%clk 0:02:57]} 11. Rac1 {[%clk
0:02:30.6]} 11... Nbd7 {[%clk 0:02:54.7]} 12. cxd5 {[%clk 0:02:30.1]} 12... Nxd5
{[%clk 0:02:43.9]} 13. Nxd5 {[%clk 0:02:25]} 13... exd5 {[%clk 0:02:42.9]} 14.
a3 {[%clk 0:02:15.8]} 14... Rfe8 {[%clk 0:02:40.7]} 15. Rfe1 {[%clk 0:01:59.1]}
15... Bd6 {[%clk 0:02:36]} 16. g4 {[%clk 0:01:48.1]} 16... Bg6 {[%clk
0:02:35.5]} 17. Nh4 {[%clk 0:01:47.6]} 17... Re6 {[%clk 0:02:21.8]} 18. Nxg6
{[%clk 0:01:39.6]} 18... hxg6 {[%clk 0:02:21.7]} 19. Bd4 {[%clk 0:01:34.4]}
19... Rae8 {[%clk 0:02:05.7]} 20. Be3 {[%clk 0:01:29.9]} 20... Rxe3 {[%clk
0:01:46.9]} 21. fxe3 {[%clk 0:01:29.9]} 21... Rxe3 {[%clk 0:01:47.8]} 22. Rf1
{[%clk 0:01:02.4]} 22... Rxe2 {[%clk 0:01:38.1]} 23. Rce1 {[%clk 0:01:00.7]}
23... Nc5 {[%clk 0:01:22.1]} 24. Qd1 {[%clk 0:00:55.3]} 24... Rxe1 {[%clk
0:01:16.1]} 25. Qxe1 {[%clk 0:00:54.7]} 25... Ne6 {[%clk 0:01:12.5]} 26. Qe2
{[%clk 0:00:40.8]} 26... Qb6+ {[%clk 0:01:06.5]} 27. Kh1 {[%clk 0:00:41.1]}
27... Qd4 {[%clk 0:01:06.7]} 28. Qf2 {[%clk 0:00:36.9]} 28... Qe5 {[%clk
0:00:57.7]} 29. Bf3 {[%clk 0:00:25.6]} 29... Nf4 {[%clk 0:00:40.2]} 30. d4
{[%clk 0:00:20]} 30... Qf6 {[%clk 0:00:36.2]} 31. Bg2 {[%clk 0:00:15.9]} 31...
Qg5 {[%clk 0:00:30.2]} 32. Qf3 {[%clk 0:00:13]} 32... Qe7 {[%clk 0:00:27.2]} 33.
Qf2 {[%clk 0:00:11.1]} 33... Ne6 {[%clk 0:00:25.9]} 34. b4 {[%clk 0:00:04.8]}
34... Bb8 {[%clk 0:00:24.6]} 35. Bf3 {[%clk 0:00:03.7]} 35... a6 {[%clk
0:00:21.8]} 36. Re1 {[%clk 0:00:03.6]} 36... Qf6 {[%clk 0:00:19.8]} 37. Rf1
{[%clk 0:00:03.6]} 37... Ba7 {[%clk 0:00:19]} 38. Qg2 {[%clk 0:00:03]} 38... Qe7
{[%clk 0:00:16.8]} 39. g5 {[%clk 0:00:02.5]} 39... Nxg5 {[%clk 0:00:15.5]} 40.
Bg4 {[%clk 0:00:02.3]} 40... Ne4 {[%clk 0:00:15.9]} 41. Qf3 {[%clk 0:00:01.9]}
41... Bxd4 {[%clk 0:00:14.8]} 42. Bc8 {[%clk 0:00:02.2]} 42... f5 {[%clk
0:00:14.2]} 43. Qg2 {[%clk 0:00:01.1]} 43... Qc7 {[%clk 0:00:13]} 44. Qxg6
{[%clk 0:00:01.4]} 44... Qxc8 {[%clk 0:00:11.7]} 45. Rxf5 {[%clk 0:00:01.5]}
45... Qxf5 {[%clk 0:00:10.7]} 0-1

[Event "Early-Titled-Tuesday-Blitz-July-09-2024"]
[Site "Chess.com"]
[Date "2024.07.09"]
[Round "6"]
[White "ArmanGhevondyanchess"]
[Black "Viacheslav92"]
[Result "1/2-1/2"]
[WhiteElo "2741"]
[BlackElo "2585"]
[TimeControl "180+1"]
[EndTime "9:09:16 PDT"]
[Termination "Game drawn by agreement"]

1. Nf3 {[%clk 0:02:59.8]} 1... Nf6 {[%clk 0:02:59.2]} 2. d4 {[%clk 0:02:59.6]}
2... e6 {[%clk 0:02:56.6]} 3. g3 {[%clk 0:02:59.6]} 3... d5 {[%clk 0:02:52.2]}
4. Bg2 {[%clk 0:02:59.2]} 4... Be7 {[%clk 0:02:52.8]} 5. O-O {[%clk 0:02:59]}
5... O-O {[%clk 0:02:53.7]} 6. c4 {[%clk 0:02:58.7]} 6... dxc4 {[%clk
0:02:54.6]} 7. Ne5 {[%clk 0:02:58.5]} 7... Nc6 {[%clk 0:02:54.8]} 8. Bxc6 {[%clk
0:02:57.9]} 8... bxc6 {[%clk 0:02:55.7]} 9. Nxc6 {[%clk 0:02:58.8]} 9... Qe8
{[%clk 0:02:55.2]} 10. Nxe7+ {[%clk 0:02:58.7]} 10... Qxe7 {[%clk 0:02:56.1]}
11. Qa4 {[%clk 0:02:59.4]} 11... e5 {[%clk 0:02:51.7]} 12. dxe5 {[%clk
0:03:00.3]} 12... Qxe5 {[%clk 0:02:52.2]} 13. Qxc4 {[%clk 0:03:00.5]} 13... Be6
{[%clk 0:02:44.6]} 14. Qc2 {[%clk 0:02:59.1]} 14... Bf5 {[%clk 0:02:42.4]} 15.
Qc4 {[%clk 0:02:57.8]} 15... Be6 {[%clk 0:02:41.1]} 16. Qc2 {[%clk 0:02:57.9]}
16... Bf5 {[%clk 0:02:41.1]} 17. Qd2 {[%clk 0:02:58.3]} 17... Rfe8 {[%clk
0:02:10.8]} 18. Nc3 {[%clk 0:02:57.1]} 18... Ne4 {[%clk 0:02:10.7]} 19. Nxe4
{[%clk 0:02:55.5]} 19... Qxe4 {[%clk 0:02:08.8]} 20. Qf4 {[%clk 0:02:55.2]}
20... Qxf4 {[%clk 0:02:02.3]} 21. Bxf4 {[%clk 0:02:54.4]} 21... Rxe2 {[%clk
0:02:02.9]} 22. b3 {[%clk 0:02:52.1]} 22... c6 {[%clk 0:01:59.8]} 23. Rfc1
{[%clk 0:02:36.8]} 23... Rc2 {[%clk 0:01:50.6]} 24. Rxc2 {[%clk 0:02:37]} 24...
Bxc2 {[%clk 0:01:51.3]} 25. f3 {[%clk 0:02:34.6]} 25... Bf5 {[%clk 0:01:46.9]}
26. Rc1 {[%clk 0:02:34.3]} 26... Bd7 {[%clk 0:01:10.9]} 27. Kf2 {[%clk
0:02:28.9]} 27... a5 {[%clk 0:01:01.3]} 28. Rc4 {[%clk 0:02:26.9]} 28... f6
{[%clk 0:00:50]} 29. Bd2 {[%clk 0:02:25.6]} 29... Kf7 {[%clk 0:00:49.5]} 30. Ra4
{[%clk 0:02:25]} 30... Bf5 {[%clk 0:00:38]} 31. Rxa5 {[%clk 0:02:15.3]} 31...
Rxa5 {[%clk 0:00:37.2]} 32. Bxa5 {[%clk 0:02:16.2]} 32... Bb1 {[%clk 0:00:36.9]}
33. a3 {[%clk 0:02:16]} 33... Ba2 {[%clk 0:00:36.4]} 34. b4 {[%clk 0:02:16.4]}
34... Ke6 {[%clk 0:00:36.8]} 35. Bb6 {[%clk 0:02:14.2]} 35... Bb3 {[%clk
0:00:34.3]} 36. Ke3 {[%clk 0:02:11.4]} 36... Kd5 {[%clk 0:00:34.8]} 37. Bc5
{[%clk 0:02:10.1]} 37... Ba4 {[%clk 0:00:33.9]} 38. Bf8 {[%clk 0:02:06.7]} 38...
g6 {[%clk 0:00:33.8]} 39. Bg7 {[%clk 0:02:02.4]} 39... f5 {[%clk 0:00:33.4]} 40.
Kf4 {[%clk 0:01:59.8]} 40... Ke6 {[%clk 0:00:33.2]} 41. Kg5 {[%clk 0:01:49]}
41... Kf7 {[%clk 0:00:32.5]} 42. Bd4 {[%clk 0:01:46.7]} 42... Bb3 {[%clk
0:00:31.6]} 43. h4 {[%clk 0:01:41.4]} 43... Bd1 {[%clk 0:00:30.8]} 44. Kf4
{[%clk 0:01:34.7]} 44... Ke6 {[%clk 0:00:30.2]} 45. Be3 {[%clk 0:01:22.2]} 45...
Bc2 {[%clk 0:00:27.8]} 46. Kg5 {[%clk 0:01:21]} 46... Kf7 {[%clk 0:00:27.3]} 47.
Kh6 {[%clk 0:01:20.8]} 47... Kg8 {[%clk 0:00:26.8]} 48. h5 {[%clk 0:01:10.5]}
48... gxh5 {[%clk 0:00:22.3]} 49. Kxh5 {[%clk 0:01:10.7]} 49... Bd1 {[%clk
0:00:12.1]} 50. Kg5 {[%clk 0:01:11]} 50... Bxf3 {[%clk 0:00:10.4]} 51. a4 {[%clk
0:01:11.5]} 51... Kf7 {[%clk 0:00:06.7]} 52. Kxf5 {[%clk 0:01:08.8]} 52... Ke7
{[%clk 0:00:07.2]} 53. Ke5 {[%clk 0:01:01.2]} 53... Kd7 {[%clk 0:00:07]} 54. Bb6
{[%clk 0:01:00.5]} 54... Kc8 {[%clk 0:00:06.6]} 55. Kd6 {[%clk 0:01:01.4]} 55...
Kb7 {[%clk 0:00:06.9]} 56. Be3 {[%clk 0:01:01]} 56... Bd1 {[%clk 0:00:07.2]} 57.
b5 {[%clk 0:00:57.5]} 57... cxb5 {[%clk 0:00:06.7]} 58. axb5 {[%clk 0:00:58.4]}
58... Be2 {[%clk 0:00:07]} 59. b6 {[%clk 0:00:59.3]} 59... Bd1 {[%clk
0:00:07.3]} 60. Ke5 {[%clk 0:01:00]} 60... Bc2 {[%clk 0:00:07.9]} 61. Kf4 {[%clk
0:01:00.9]} 61... Bb1 {[%clk 0:00:08.5]} 62. g4 {[%clk 0:01:01.8]} 62... Bg6
{[%clk 0:00:08.9]} 63. Bd4 {[%clk 0:01:02.7]} 63... Bb1 {[%clk 0:00:09.4]} 64.
Ke3 {[%clk 0:01:03.2]} 64... Bg6 {[%clk 0:00:10.3]} 65. g5 {[%clk 0:01:04.1]}
65... Bb1 {[%clk 0:00:10.4]} 66. Kd2 {[%clk 0:01:05]} 66... Bg6 {[%clk
0:00:10.9]} 67. Kd1 {[%clk 0:01:05.9]} 67... Bf5 {[%clk 0:00:11.5]} 68. Bf6
{[%clk 0:01:06.8]} 68... Bg6 {[%clk 0:00:11.9]} 69. Kc1 {[%clk 0:01:07.7]} 69...
Kxb6 {[%clk 0:00:12.1]} 70. Bd8+ {[%clk 0:01:08.6]} 70... Kc6 {[%clk 0:00:13]}
71. Bf6 {[%clk 0:01:09.5]} 71... Kd5 {[%clk 0:00:13.9]} 72. Kd2 {[%clk
0:01:10.4]} 72... Ke6 {[%clk 0:00:14.8]} 1/2-1/2

[Event "Early-Titled-Tuesday-Blitz-July-09-2024"]
[Site "Chess.com"]
[Date "2024.07.09"]
[Round "6"]
[White "tgpgoat"]
[Black "tylityli"]
[Result "1-0"]
[WhiteElo "2524"]
[BlackElo "2388"]
[TimeControl "180+1"]
[EndTime "9:09:17 PDT"]
[Termination "tgpgoat won on time"]

1. Nf3 {[%clk 0:03:00.9]} 1... Nf6 {[%clk 0:02:59.3]} 2. d4 {[%clk 0:03:01.8]}
2... d5 {[%clk 0:02:58.9]} 3. Bg5 {[%clk 0:03:02.1]} 3... Ne4 {[%clk 0:02:57.9]}
4. Bf4 {[%clk 0:03:02.4]} 4... a6 {[%clk 0:02:56.7]} 5. Nbd2 {[%clk 0:03:01.6]}
5... Nf6 {[%clk 0:02:53.1]} 6. e3 {[%clk 0:03:00.4]} 6... c5 {[%clk 0:02:50.7]}
7. h3 {[%clk 0:03:00.3]} 7... h6 {[%clk 0:02:44.6]} 8. c3 {[%clk 0:02:55.3]}
8... cxd4 {[%clk 0:02:35.1]} 9. exd4 {[%clk 0:02:53.6]} 9... Bf5 {[%clk
0:02:35]} 10. Be2 {[%clk 0:02:51.1]} 10... e6 {[%clk 0:02:33.6]} 11. O-O {[%clk
0:02:49.6]} 11... Bd6 {[%clk 0:02:33]} 12. Ne5 {[%clk 0:02:47.9]} 12... O-O
{[%clk 0:02:31.5]} 13. Ndf3 {[%clk 0:02:47.6]} 13... Nc6 {[%clk 0:02:29.7]} 14.
Bd3 {[%clk 0:02:45]} 14... Be4 {[%clk 0:02:19.9]} 15. Nxc6 {[%clk 0:02:41.5]}
15... bxc6 {[%clk 0:02:18.8]} 16. Ne5 {[%clk 0:02:40]} 16... Qc7 {[%clk
0:02:14.5]} 17. Qe2 {[%clk 0:02:31.4]} 17... a5 {[%clk 0:02:13.1]} 18. Rac1
{[%clk 0:02:29.5]} 18... a4 {[%clk 0:02:12.5]} 19. c4 {[%clk 0:02:29.8]} 19...
Bxd3 {[%clk 0:01:45.8]} 20. Qxd3 {[%clk 0:02:27.6]} 20... Bxe5 {[%clk
0:01:31.5]} 21. Bxe5 {[%clk 0:02:28.5]} 21... Qe7 {[%clk 0:01:30.7]} 22. cxd5
{[%clk 0:02:20.4]} 22... cxd5 {[%clk 0:01:29.3]} 23. Rc7 {[%clk 0:02:05.6]}
23... Qd8 {[%clk 0:01:27.3]} 24. Rfc1 {[%clk 0:02:01.8]} 24... Ne4 {[%clk
0:01:15.5]} 25. Qb5 {[%clk 0:01:46]} 25... Qg5 {[%clk 0:01:08.7]} 26. Qe2 {[%clk
0:01:14.2]} 26... Qd2 {[%clk 0:00:53]} 27. Qxd2 {[%clk 0:01:01.8]} 27... Nxd2
{[%clk 0:00:53.9]} 28. R1c6 {[%clk 0:01:02.2]} 28... Nc4 {[%clk 0:00:52.8]} 29.
b3 {[%clk 0:00:48.2]} 29... axb3 {[%clk 0:00:50]} 30. axb3 {[%clk 0:00:49.1]}
30... Nxe5 {[%clk 0:00:47.1]} 31. dxe5 {[%clk 0:00:50]} 31... Ra1+ {[%clk
0:00:46.2]} 32. Kh2 {[%clk 0:00:49.6]} 32... Rb1 {[%clk 0:00:45.8]} 33. Rc3
{[%clk 0:00:49]} 33... Rb8 {[%clk 0:00:44.3]} 34. Ra7 {[%clk 0:00:46.9]} 34...
R1xb3 {[%clk 0:00:40.8]} 35. Rcc7 {[%clk 0:00:46.7]} 35... Rf8 {[%clk
0:00:40.7]} 36. f4 {[%clk 0:00:43.3]} 36... Re3 {[%clk 0:00:30.7]} 37. Rd7
{[%clk 0:00:42.5]} 37... Re4 {[%clk 0:00:25.7]} 38. Kg3 {[%clk 0:00:43.1]} 38...
Re3+ {[%clk 0:00:25.6]} 39. Kf2 {[%clk 0:00:43.3]} 39... Re4 {[%clk 0:00:26]}
40. Kf3 {[%clk 0:00:43.7]} 40... Re1 {[%clk 0:00:25.3]} 41. g3 {[%clk
0:00:43.2]} 41... Rf1+ {[%clk 0:00:24.8]} 42. Kg4 {[%clk 0:00:43.7]} 42... Rf2
{[%clk 0:00:23.8]} 43. h4 {[%clk 0:00:44]} 43... g6 {[%clk 0:00:18.8]} 44. h5
{[%clk 0:00:42.4]} 44... Kg7 {[%clk 0:00:19.1]} 45. Ra6 {[%clk 0:00:38.2]} 45...
Re8 {[%clk 0:00:14.6]} 46. Raa7 {[%clk 0:00:34.9]} 46... Rf8 {[%clk 0:00:14]}
47. Re7 {[%clk 0:00:34.8]} 47... Rh2 {[%clk 0:00:10.1]} 48. Rxe6 {[%clk
0:00:26.4]} 48... Rxh5 {[%clk 0:00:07.3]} 49. Rd6 {[%clk 0:00:26.9]} 49... Kg8
{[%clk 0:00:04.5]} 50. Rxd5 {[%clk 0:00:26.2]} 50... Rh1 {[%clk 0:00:04.1]} 51.
Rdd7 {[%clk 0:00:25.2]} 51... Rf1 {[%clk 0:00:03.6]} 52. e6 {[%clk 0:00:24.9]}
1-0

[Event "Early-Titled-Tuesday-Blitz-July-09-2024"]
[Site "Chess.com"]
[Date "2024.07.09"]
[Round "6"]
[White "guillembaches"]
[Black "tptagain"]
[Result "0-1"]
[WhiteElo "2560"]
[BlackElo "3050"]
[TimeControl "180+1"]
[EndTime "9:09:20 PDT"]
[Termination "tptagain won on time"]

1. e4 {[%clk 0:03:00.9]} 1... c5 {[%clk 0:02:59.1]} 2. Nf3 {[%clk 0:03:01]} 2...
Nc6 {[%clk 0:02:59.5]} 3. d4 {[%clk 0:03:00.7]} 3... cxd4 {[%clk 0:03:00.4]} 4.
Nxd4 {[%clk 0:03:01.1]} 4... e5 {[%clk 0:03:00.8]} 5. Nb5 {[%clk 0:03:00.8]}
5... d6 {[%clk 0:03:00.9]} 6. N1c3 {[%clk 0:02:58.5]} 6... a6 {[%clk 0:03:00.8]}
7. Na3 {[%clk 0:02:58.6]} 7... Be6 {[%clk 0:03:01.2]} 8. Be3 {[%clk 0:02:55.9]}
8... Rb8 {[%clk 0:02:13.8]} 9. Nd5 {[%clk 0:02:48.4]} 9... Bxd5 {[%clk 0:02:14]}
10. exd5 {[%clk 0:02:47]} 10... Nce7 {[%clk 0:02:14.1]} 11. c4 {[%clk
0:02:26.4]} 11... Nf5 {[%clk 0:02:04.6]} 12. Bd2 {[%clk 0:02:15.3]} 12... g6
{[%clk 0:02:04.3]} 13. Bd3 {[%clk 0:02:14.2]} 13... Nd4 {[%clk 0:01:57.6]} 14.
Nc2 {[%clk 0:02:10.9]} 14... Nxc2+ {[%clk 0:01:47.6]} 15. Qxc2 {[%clk
0:02:10.3]} 15... Bh6 {[%clk 0:01:48.2]} 16. Bb4 {[%clk 0:01:58.6]} 16... Nf6
{[%clk 0:01:39.7]} 17. O-O {[%clk 0:01:56.5]} 17... O-O {[%clk 0:01:37.4]} 18.
a4 {[%clk 0:01:37.9]} 18... a5 {[%clk 0:01:36.4]} 19. Ba3 {[%clk 0:01:37]} 19...
b6 {[%clk 0:01:36.2]} 20. b4 {[%clk 0:01:33.4]} 20... Ra8 {[%clk 0:01:00.2]} 21.
Rfd1 {[%clk 0:01:13.3]} 21... Qc7 {[%clk 0:00:52.6]} 22. Qb3 {[%clk 0:00:49]}
22... Nd7 {[%clk 0:00:49.5]} 23. Bf1 {[%clk 0:00:47.4]} 23... axb4 {[%clk
0:00:48.7]} 24. Bxb4 {[%clk 0:00:47.3]} 24... Nc5 {[%clk 0:00:49]} 25. Qh3
{[%clk 0:00:43.2]} 25... Bg7 {[%clk 0:00:47]} 26. Ra3 {[%clk 0:00:35.6]} 26...
f5 {[%clk 0:00:42.5]} 27. Bxc5 {[%clk 0:00:30.2]} 27... Qxc5 {[%clk 0:00:41.9]}
28. Rb1 {[%clk 0:00:27.5]} 28... e4 {[%clk 0:00:35]} 29. Rab3 {[%clk 0:00:24.1]}
29... Bd4 {[%clk 0:00:34.1]} 30. Qh4 {[%clk 0:00:20.3]} 30... Qc7 {[%clk
0:00:29.4]} 31. Kh1 {[%clk 0:00:11.4]} 31... Rxa4 {[%clk 0:00:27.1]} 32. Rh3
{[%clk 0:00:07.3]} 32... Ra2 {[%clk 0:00:21.7]} 33. Rd1 {[%clk 0:00:07.1]} 33...
Bxf2 {[%clk 0:00:21.6]} 34. Qh6 {[%clk 0:00:07.5]} 34... Qg7 {[%clk 0:00:19.5]}
35. Qf4 {[%clk 0:00:07.1]} 35... Bc5 {[%clk 0:00:19.8]} 36. Rb1 {[%clk
0:00:06.5]} 36... Rfa8 {[%clk 0:00:18.8]} 37. Rhb3 {[%clk 0:00:06.4]} 37... Ra1
{[%clk 0:00:18.7]} 38. h3 {[%clk 0:00:06.9]} 38... Qd4 {[%clk 0:00:16.8]} 39.
Kh2 {[%clk 0:00:05.3]} 39... Rxb1 {[%clk 0:00:11.1]} 40. Rxb1 {[%clk 0:00:05.8]}
40... Qg1+ {[%clk 0:00:11.5]} 41. Kg3 {[%clk 0:00:05.3]} 41... Ra3+ {[%clk
0:00:11.6]} 42. Kh4 {[%clk 0:00:04.7]} 42... Bf2+ {[%clk 0:00:08.6]} 43. Kg5
{[%clk 0:00:02.8]} 43... Be3 {[%clk 0:00:09]} 44. Kf6 {[%clk 0:00:03.7]} 44...
Bxf4 {[%clk 0:00:08.9]} 45. Rxb6 {[%clk 0:00:04.6]} 45... Be5+ {[%clk 0:00:09]}
46. Ke7 {[%clk 0:00:04.8]} 46... Qxb6 {[%clk 0:00:09.4]} 47. Ke8 {[%clk
0:00:04]} 47... Ra7 {[%clk 0:00:08.9]} 0-1